bitfinex-derivatives/quotes_BNBF0:USTF0_20250111
["timestamp","ask_amount","ask_price","bid_price","bid_amount"]
[1736574321778,1.07638218,694.36,693.11,0.28855448]
[1736574322684,1.07638218,694.35,693.11,0.28855448]
[1736574324486,1.36441305,694.37,693.11,0.28855448]
[1736574327089,1.07638218,694.36,693.11,0.28855448]
[1736574328296,0.28803087,694.37,693.11,0.28855448]
[1736574330293,1.36441305,694.37,693.11,0.28855448]
[1736574331595,1.07638218,694.29,693.11,0.28855448]
[1736574332594,1.07638218,694.3,693.11,0.28855448]
[1736574335395,1.07638218,694.24,693.11,0.28855448]
[1736574336296,0.28803087,694.37,693.11,0.28855448]
[1736574336297,1.07638218,694.26,693.11,0.28855448]
[1736574337092,1.07638218,694.27,693.11,0.28855448]
[1736574338394,1.07638218,694.22,693.11,0.28855448]
[1736574340396,1.07638218,694.23,693.11,0.28855448]
[1736574344497,1.07638218,694.24,693.11,0.28855448]
[1736574347400,0.28803087,694.37,693.11,0.28855448]
[1736574347401,1.07638218,694.23,693.11,0.28855448]
[1736574355508,1.07638218,694.22,693.11,0.28855448]
[1736574357204,1.07638218,694.21,693.11,0.28855448]
[1736574359110,1.07638218,694.2,693.11,0.28855448]
[1736574360312,1.07638218,694.18,693.11,0.28855448]
[1736574361212,1.07638218,694.24,693.11,0.28855448]
[1736574362308,1.07638218,694.23,693.11,0.28855448]
[1736574363515,0.28803087,694.37,693.11,0.28855448]
[1736574363516,1.07638218,694.24,693.11,0.28855448]
[1736574364209,0.28803087,694.37,693.11,0.28855448]
[1736574364210,1.07638218,694.36,693.11,0.28855448]
[1736574364813,1.36441305,694.37,693.11,0.28855448]
[1736574367016,1.07638218,694.36,693.11,0.28855448]
[1736574367715,1.07638218,694.35,693.11,0.28855448]
[1736574369015,1.07638218,694.3,693.11,0.28855448]
[1736574369816,1.07638218,694.32,693.11,0.28855448]
[1736574372015,1.07638218,694.33,693.11,0.28855448]
[1736574373010,1.07638218,694.32,693.11,0.28855448]
[1736574373717,1.07638218,694.3,693.11,0.28855448]
[1736574376520,0.28803087,694.37,693.11,0.28855448]
[1736574376521,1.07638218,694.33,693.11,0.28855448]
[1736574376714,1.36442965,694.33,693.11,0.28855448]
[1736574377316,0.28804747,694.33,693.11,0.28855448]
[1736574421452,1.07638218,694.3,693.11,0.28855448]
[1736574423754,1.07638218,694.29,693.11,0.28855448]
[1736574424857,1.07638218,694.31,693.11,0.28855448]
[1736574425757,1.07638218,694.3,693.11,0.28855448]
[1736574426960,1.07638218,694.3,693.11,1.572994]
[1736574429862,1.07638218,694.31,693.12,1.28443952]
[1736574430061,1.07638218,694.31,693.13,0.28854616]
[1736574430763,1.07638218,694.29,693.13,0.28854616]
[1736574432060,1.07638218,694.31,693.13,0.28854616]
[1736574432863,1.07638218,694.3,693.13,0.28854616]
[1736574435665,0.28804747,694.33,693.13,0.28854616]
[1736574443464,1.07638218,694.32,693.13,0.28854616]
[1736574444271,1.07638218,694.28,693.13,0.28854616]
[1736574445270,1.07638218,694.3,693.13,0.28854616]
[1736574446075,1.07638218,694.32,693.13,0.28854616]
[1736574446878,1.36442965,694.33,693.13,0.28854616]
[1736574448077,0.28804747,694.33,693.13,0.28854616]
[1736574449074,1.07638218,694.31,693.13,0.28854616]
[1736574449873,1.07638218,694.3,693.13,0.28854616]
[1736574450780,1.07638218,694.32,693.13,0.28854616]
[1736574451778,0.28804747,694.33,693.13,0.28854616]
[1736574451779,1.07638218,694.31,693.13,0.28854616]
[1736574452575,1.07638218,694.32,693.13,0.28854616]
[1736574453278,1.07638218,694.3,693.13,0.28854616]
[1736574454580,0.28804747,694.33,693.13,0.28854616]
[1736574454581,1.07638218,694.31,693.13,0.28854616]
[1736574455779,1.07638218,694.32,693.13,0.28854616]
[1736574456675,1.36442965,694.33,693.13,0.28854616]
[1736574457782,1.07638218,694.31,693.13,0.28854616]
[1736574458584,0.28804747,694.33,693.13,0.28854616]
[1736574468283,1.07638218,694.28,693.13,0.28854616]
[1736574469290,1.07638218,694.32,693.13,0.28854616]
[1736574470087,0.28804747,694.33,693.13,0.28854616]
[1736574470088,1.07638218,694.31,693.13,0.28854616]
[1736574471086,1.07638218,694.3,693.13,0.28854616]
[1736574472292,1.07638218,694.27,693.13,0.28854616]
[1736574473294,1.07638218,694.26,693.13,0.28854616]
[1736574474186,1.07638218,694.24,693.13,0.28854616]
[1736574475187,1.07638218,694.23,693.13,0.28854616]
[1736574475885,1.07638218,694.22,693.13,0.28854616]
[1736574479393,1.07638218,694.19,693.13,0.28854616]
[1736574480295,1.07638218,694.23,693.13,0.28854616]
[1736574483193,0.28804747,694.33,693.13,0.28854616]
[1736574483194,1.07638218,694.27,693.13,0.28854616]
[1736574483789,1.07638218,694.25,693.13,0.28854616]
[1736574485692,1.07638218,694.27,693.13,0.28854616]
[1736574486796,0.28804747,694.33,693.13,0.28854616]
[1736574486797,1.07638218,694.29,693.13,0.28854616]
[1736574488998,1.07638218,694.27,693.13,0.28854616]
[1736574489801,0.28804747,694.33,693.13,0.28854616]
[1736574499213,1.36442965,694.33,693.13,0.28854616]
[1736574500107,1.07638218,694.16,693.13,0.28854616]
[1736574501318,1.07638218,694.13,693.13,0.28854616]
[1736574502220,1.07638218,694.32,693.13,0.28854616]
[1736574502221,1.07638218,694.14,693.13,0.28854616]
[1736574503120,1.07638218,694.13,693.13,0.28854616]
[1736574504123,0.28804747,694.33,693.13,0.28854616]
[1736574504124,1.07638218,694.15,693.13,0.28854616]
[1736574505223,1.07638218,694.14,693.13,0.28854616]
[1736574506521,0.28804747,694.33,693.13,0.28854616]
[1736574506522,1.07638218,694.13,693.13,0.28854616]
[1736574509326,1.07638218,694.12,693.13,0.28854616]
[1736574513131,0.28804747,694.33,693.13,0.28854616]
[1736574513132,1.07638218,694.11,693.13,0.28854616]
[1736574513934,1.07638218,694.13,693.13,0.28854616]
[1736574514932,1.07638218,694.12,693.13,0.28854616]
[1736574515830,1.07638218,694.11,693.13,0.28854616]
[1736574519834,1.07638218,694.1,693.13,0.28854616]
[1736574520735,1.07638218,694.09,693.13,0.28854616]
[1736574521735,1.07638218,694.27,693.13,0.28854616]
[1736574521736,1.07638218,694.08,693.13,0.28854616]
[1736574522534,1.07638218,694.07,693.13,0.28854616]
[1736574523640,1.07638218,694.06,693.13,0.28854616]
[1736574526543,1.07638218,694.07,693.13,0.28854616]
[1736574527638,1.07638218,694.1,693.13,0.28854616]
[1736574530341,1.07638218,694.12,693.13,0.28854616]
[1736574534751,1.07638218,694.11,693.13,0.28854616]
[1736574535846,0.28804747,694.33,693.13,0.28854616]
[1736574536950,1.36442965,694.33,693.13,0.28854616]
[1736574538255,0.28804747,694.33,693.13,0.28854616]
[1736574541457,1.07638218,694.23,693.13,0.28854616]
[1736574542659,1.07638218,694.22,693.13,0.28854616]
[1736574544560,1.07638218,694.23,693.13,0.28854616]
[1736574546456,1.07638218,694.24,693.13,0.28854616]
[1736574546657,1.07638218,694.24,692.33,1.28443952]
[1736574546858,1.07638218,694.24,692.35,0.28887123]
[1736574547057,1.36447114,694.23,692.35,0.28887123]
[1736574547261,0.28809311,694.22,692.35,0.28887123]
[1736574548960,1.07638218,694.21,692.35,0.28887123]
[1736574549759,0.28810141,694.2,692.35,0.28887123]
[1736574551261,1.07638218,694.15,692.37,1.28443952]
[1736574551560,1.07638218,694.15,692.39,0.28885454]
[1736574552061,1.07638218,694.17,692.39,1.57329406]
[1736574552854,1.07638218,694.15,692.43,1.28443952]
[1736574553058,1.07638218,694.15,692.45,0.28882951]
[1736574553961,1.07638218,694.12,692.45,0.28882951]
[1736574555261,1.07638218,694.11,692.45,0.28882951]
[1736574556162,1.07638218,694.19,692.48,1.28443952]
[1736574557363,1.07638218,694.18,692.52,1.28443952]
[1736574557564,1.07638218,694.18,692.54,0.28879198]
[1736574559664,1.3412564,694.17,692.54,0.28879198]
[1736574559863,0.26487422,694.16,692.54,0.28879198]
[1736574560762,1.07638218,694.11,692.7,1.28443952]
[1736574560958,1.07638218,694.11,692.71,0.2887211]
[1736574561765,0.28810556,694.19,692.71,0.2887211]
[1736574561766,1.07638218,694.16,692.71,0.2887211]
[1736574563971,1.07638218,694.07,692.71,0.2887211]
[1736574564671,1.07638218,694.08,692.71,0.2887211]
[1736574565972,1.07638218,694.05,692.71,0.2887211]
[1736574566774,1.07638218,694.06,692.71,0.2887211]
[1736574567769,1.07638218,694.11,692.71,0.2887211]
[1736574568774,1.07638218,694.1,692.71,0.2887211]
[1736574569976,1.07638218,694.09,692.71,0.2887211]
[1736574571072,1.07638218,694.08,692.71,0.2887211]
[1736574572375,1.07638218,694.07,692.71,0.2887211]
[1736574573678,1.07638218,694.05,692.71,0.2887211]
[1736574574377,1.07638218,694.06,692.71,0.2887211]
[1736574575379,1.07638218,694.07,692.71,0.2887211]
[1736574576381,1.07638218,694.08,692.71,0.2887211]
[1736574577180,1.07638218,693.99,692.74,1.28443952]
[1736574577383,1.07638218,693.99,692.75,0.28870443]
[1736574578179,1.07638218,693.96,692.75,0.28870443]
[1736574579076,1.07638218,693.93,692.75,0.28870443]
[1736574580176,0.89439279,694.18,692.75,0.28870443]
[1736574580177,1.07638218,693.92,692.75,0.28870443]
[1736574581584,1.07638218,694.01,692.75,0.28870443]
[1736574582484,1.07638218,693.99,692.75,0.28870443]
[1736574583785,1.07638218,694.0,692.75,0.28870443]
[1736574586186,1.07638218,694.01,692.75,0.28870443]
[1736574587082,1.07638218,693.98,692.75,0.28870443]
[1736574590092,1.07638218,693.97,692.75,0.28870443]
[1736574591594,0.28810556,694.19,692.75,0.28870443]
[1736574591595,1.07638218,693.88,692.75,0.28870443]
[1736574592592,1.07638218,694.06,692.75,0.28870443]
[1736574592593,1.07638218,693.87,692.75,0.28870443]
[1736574593693,1.07638218,693.91,692.75,0.28870443]
[1736574595488,0.8944967,694.15,692.75,0.28870443]
[1736574595489,1.07638218,693.9,692.75,0.28870443]
[1736574596288,1.07638218,694.09,692.75,0.28870443]
[1736574596289,1.07638218,693.89,692.75,0.28870443]
[1736574597195,0.28815122,694.08,692.75,0.28870443]
[1736574597196,1.07638218,693.9,692.75,0.28870443]
[1736574598415,1.07638218,693.93,692.75,0.28870443]
[1736574599491,1.07638218,693.95,692.75,0.28870443]
[1736574601598,1.07638218,693.9,692.75,0.28870443]
[1736574604500,1.07638218,693.92,692.75,0.28870443]
[1736574607503,0.28815122,694.08,692.75,0.28870443]
[1736574607504,1.07638218,693.89,692.75,0.28870443]
[1736574608604,1.07638218,693.84,692.75,0.28870443]
[1736574610105,1.07638218,693.83,692.75,0.28870443]
[1736574610801,1.07638218,693.85,692.75,0.28870443]
[1736574612105,1.07638218,693.83,692.75,0.28870443]
[1736574613107,1.07638218,693.84,692.75,0.28870443]
[1736574613805,1.07638218,693.83,692.75,0.28870443]
[1736574614806,1.07638218,693.82,692.75,0.28870443]
[1736574615704,1.07638218,693.83,692.75,0.28870443]
[1736574616613,1.07638218,693.85,692.75,0.28870443]
[1736574617911,1.07638218,693.83,692.75,0.28870443]
[1736574618909,1.07638218,693.84,692.75,0.28870443]
[1736574619915,1.07638218,693.81,692.75,0.28870443]
[1736574620713,1.07638218,693.8,692.75,0.28870443]
[1736574622912,0.89282011,694.05,692.75,0.28870443]
[1736574622913,1.07638218,693.81,692.75,0.28870443]
[1736574623813,1.07638218,693.77,692.75,0.28870443]
[1736574626017,1.07638218,693.76,692.75,0.28870443]
[1736574628315,1.07638218,693.78,692.75,0.28870443]
[1736574631721,0.28815952,694.06,692.75,0.28870443]
[1736574638723,1.3645417,694.06,692.75,0.28870443]
[1736574639825,0.28815952,694.06,692.75,0.28870443]
[1736574640831,1.07638218,694.02,692.75,0.28870443]
[1736574641134,0.26493285,694.01,692.75,0.28870443]
[1736574641728,1.07638218,693.89,692.75,0.28870443]
[1736574642635,1.07638218,693.9,692.75,0.28870443]
[1736574643231,1.07638218,693.91,692.75,0.28870443]
[1736574644736,1.07043368,693.91,692.75,0.28870443]
[1736574645239,0.28815952,694.06,692.75,0.28870443]
[1736574645535,0.26492818,694.05,692.75,0.28870443]
[1736574648231,0.26492699,694.04,692.75,0.28870443]
[1736574648435,0.26492699,694.03,692.75,0.28870443]
[1736574648636,0.26492699,694.02,692.75,0.28870443]
[1736574648938,0.26492683,694.01,692.75,0.28870443]
[1736574649237,0.28815952,694.06,692.75,0.28870443]
[1736574649434,0.26492264,694.05,692.75,0.28870443]
[1736574651037,0.26492885,694.04,692.75,0.28870443]
[1736574651339,0.28815952,694.06,692.75,0.28870443]
[1736574651340,0.26492885,694.03,692.75,0.28870443]
[1736574651540,0.26492885,694.02,692.75,0.28870443]
[1736574651840,0.26492885,694.01,692.75,0.28870443]
[1736574652038,0.28815952,694.06,692.75,0.28870443]
[1736574652237,0.26492904,694.05,692.75,0.28870443]
[1736574653641,0.28815952,694.06,692.75,0.28870443]
[1736574653841,0.26492897,694.05,692.75,0.28870443]
[1736574656344,0.28815952,694.06,692.75,0.28870443]
[1736574656544,0.26491542,694.05,692.75,0.28870443]
[1736574658945,1.3412976,694.05,692.75,0.28870443]
[1736574659142,1.07638218,694.05,692.75,0.28870443]
[1736574659342,0.26492023,694.04,692.75,0.28870443]
[1736574660343,0.26492023,694.03,692.75,0.28870443]
[1736574660540,1.3645417,694.06,692.75,0.28870443]
[1736574660744,0.26491779,694.05,692.75,0.28870443]
[1736574661141,1.3645417,694.06,692.75,0.28870443]
[1736574661346,0.26491359,694.05,692.75,0.28870443]
[1736574662247,1.07638218,694.04,692.75,0.28870443]
[1736574662443,0.26491359,694.03,692.75,0.28870443]
[1736574663346,1.07638218,694.02,692.75,0.28870443]
[1736574664146,1.07638218,694.01,692.75,0.28870443]
[1736574664947,1.07638218,693.99,692.75,0.28870443]
[1736574666044,1.07638218,693.97,692.75,0.28870443]
[1736574667249,1.07638218,694.04,692.75,0.28870443]
[1736574667950,1.07638218,694.03,692.75,0.28870443]
[1736574668543,1.07638218,694.02,692.75,0.28870443]
[1736574672851,1.07638218,694.03,692.75,0.28870443]
[1736574673748,1.07638218,693.99,692.75,0.28870443]
[1736574675854,1.07638218,694.01,692.75,0.28870443]
[1736574676853,1.07638218,693.97,692.75,0.28870443]
[1736574678462,1.07638218,693.96,692.75,0.28870443]
[1736574679155,1.07638218,693.97,692.75,0.28870443]
[1736574679959,1.07638218,693.96,692.75,0.28870443]
[1736574682464,1.07638218,693.97,692.75,0.28870443]
[1736574683764,1.07638218,694.0,692.75,0.28870443]
[1736574684573,0.89507778,694.05,692.75,0.28870443]
[1736574684574,1.07638218,693.99,692.75,0.28870443]
[1736574686564,0.89507778,694.05,692.75,0.28870443]
[1736574686565,1.07638218,693.98,692.75,0.28870443]
[1736574690772,1.07638218,693.97,692.75,0.28870443]
[1736574691568,1.07638218,693.94,692.75,0.28870443]
[1736574692771,1.07638218,693.97,692.75,0.28870443]
[1736574695772,1.3645417,694.06,692.75,0.28870443]
[1736574695773,0.28815952,694.06,692.75,0.28870443]
[1736574705978,1.07638218,694.05,692.75,0.28870443]
[1736574707183,1.3645417,694.06,692.75,0.28870443]
[1736574708680,1.07638218,694.05,692.75,0.28870443]
[1736574710482,1.07638218,694.04,692.75,0.28870443]
[1736574711379,1.07638218,694.05,692.75,0.28870443]
[1736574712186,1.07638218,694.04,692.75,0.28870443]
[1736574714684,1.07638218,694.02,692.75,0.28870443]
[1736574715884,1.07638218,694.03,692.75,0.28870443]
[1736574718187,1.07638218,694.0,692.75,0.28870443]
[1736574721287,0.28815952,694.06,692.75,0.28870443]
[1736574722385,1.3645417,694.06,692.75,0.28870443]
[1736574723281,0.28815952,694.06,692.75,0.28870443]
[1736574724388,1.07638218,694.05,692.75,0.28870443]
[1736574725394,0.28815952,694.06,692.75,0.28870443]
[1736574727090,1.3645417,694.06,692.75,0.28870443]
[1736574728193,0.28815952,694.06,692.75,0.28870443]
[1736574729096,1.3645417,694.06,692.75,0.28870443]
[1736574729987,1.07638218,694.05,692.75,0.28870443]
[1736574730590,0.26492646,694.04,692.75,0.28870443]
[1736574731193,0.26492646,694.03,692.75,0.28870443]
[1736574731392,0.26492646,694.02,692.75,0.28870443]
[1736574731589,0.26492646,694.01,692.75,0.28870443]
[1736574731794,1.07638218,693.99,692.75,0.28870443]
[1736574732691,1.07638218,693.97,692.75,0.28870443]
[1736574733596,1.07638218,694.04,692.75,0.28870443]
[1736574734597,1.07638218,694.03,692.75,0.28870443]
[1736574735598,1.07638218,694.04,692.75,0.28870443]
[1736574737599,0.28815952,694.06,692.75,0.28870443]
[1736574737600,1.07638218,694.05,692.75,0.28870443]
[1736574737999,0.26493596,694.04,692.75,0.28870443]
[1736574738600,1.07638218,694.05,692.75,0.28870443]
[1736574739401,0.28815952,694.06,692.75,0.28870443]
[1736574741000,0.26494229,694.05,692.75,0.28870443]
[1736574741201,0.28815952,694.06,692.75,0.28870443]
[1736574741601,0.26494221,694.05,692.75,0.28870443]
[1736574742003,0.28816782,694.04,692.75,0.28870443]
[1736574742203,0.26494221,694.03,692.75,0.28870443]
[1736574742605,0.28817613,694.02,692.75,0.28870443]
[1736574742807,1.34134305,694.01,692.75,0.28870443]
[1736574743001,0.5531453,694.0,692.75,0.28870443]
[1736574743201,0.26496087,693.99,692.75,0.28870443]
[1736574744807,1.34134305,693.99,692.75,0.28870443]
[1736574745007,1.07638218,693.99,692.75,0.28870443]
[1736574745809,0.28818443,694.0,692.75,0.28870443]
[1736574746105,0.26495497,693.99,692.75,0.28870443]
[1736574746713,1.07638218,693.94,692.75,0.28870443]
[1736574747311,0.26495576,693.93,692.75,0.28870443]
[1736574747513,1.07638218,693.94,692.75,0.28870443]
[1736574747708,1.07638218,693.95,692.75,0.28870443]
[1736574748011,0.26495668,693.94,692.75,0.28870443]
[1736574748212,0.26495612,693.93,692.75,0.28870443]
[1736574748412,1.07638218,693.95,692.75,0.28870443]
[1736574748915,0.26495712,693.94,692.75,0.28870443]
[1736574749111,1.07638218,693.95,692.75,0.28870443]
[1736574749917,1.07638218,693.99,692.75,0.28870443]
[1736574750210,0.26494436,693.98,692.75,0.28870443]
[1736574750819,1.07638218,693.97,692.75,0.28870443]
[1736574751014,0.26494436,693.96,692.75,0.28870443]
[1736574751411,1.07638218,693.97,692.75,0.28870443]
[1736574751612,0.2649447,693.96,692.75,0.28870443]
[1736574751813,1.34132688,693.96,692.75,0.28870443]
[1736574752008,1.07638218,693.96,692.75,0.28870443]
[1736574755117,1.07638218,693.98,692.75,0.28870443]
[1736574755720,1.07638218,693.97,692.75,0.28870443]
[1736574757517,0.28818443,694.0,692.75,0.28870443]
[1736574764924,1.0796228,693.86,692.75,0.28870443]
[1736574766626,0.28818443,694.0,692.75,0.28870443]
[1736574766627,1.0796228,693.84,692.75,0.28870443]
[1736574768429,1.0796228,693.86,692.75,0.28870443]
[1736574769624,1.0796228,693.89,692.75,0.28870443]
[1736574770629,1.0796228,693.91,692.75,0.28870443]
[1736574772332,0.28818443,694.0,692.75,0.28870443]
[1736574782741,1.0796228,694.19,692.75,0.28870443]
[1736574783338,1.0796228,694.27,692.75,0.28870443]
[1736574783638,0.26483039,694.26,692.75,0.28870443]
[1736574784241,1.0796228,694.23,692.75,0.28870443]
[1736574786036,1.0796228,694.24,692.75,0.28870443]
[1736574786837,0.26483943,694.23,692.75,0.28870443]
[1736574787042,1.0796228,694.24,692.75,0.28870443]
[1736574787943,1.0796228,694.23,692.75,0.28870443]
[1736574792848,1.0796228,694.31,692.75,0.28870443]
[1736574794652,0.28797696,694.5,692.75,0.28870443]
[1736574794653,1.0796228,694.32,692.75,0.28870443]
[1736574797154,1.0796228,694.36,692.75,0.28870443]
[1736574798250,1.0796228,694.38,692.75,0.28870443]
[1736574800454,1.0796228,694.37,692.75,0.28870443]
[1736574801458,1.0796228,694.36,692.75,0.28870443]
[1736574802655,1.0796228,694.28,692.75,0.28870443]
[1736574803760,1.36435914,694.5,692.75,0.28870443]
[1736574803761,1.0796228,694.36,692.75,0.28870443]
[1736574804762,1.0796228,694.34,692.75,0.28870443]
[1736574805761,1.0796228,694.31,692.75,0.28870443]
[1736574807759,1.0796228,694.28,692.75,0.28870443]
[1736574808559,1.0796228,694.27,692.75,0.28870443]
[1736574810962,1.0796228,694.44,692.75,0.28870443]
[1736574812064,1.0796228,694.46,692.75,0.28870443]
[1736574812961,1.0796228,694.48,692.75,0.28870443]
[1736574814165,1.0796228,694.42,692.75,0.28870443]
[1736574815169,1.0796228,694.43,692.75,0.28870443]
[1736574815965,1.0796228,694.44,692.75,0.28870443]
[1736574818365,1.0796228,694.45,692.75,0.28870443]
[1736574819366,0.2879811,694.49,692.75,0.28870443]
[1736574819367,1.0796228,694.46,692.75,0.28870443]
[1736574819967,1.0796228,694.37,692.78,1.28443952]
[1736574820168,1.0796228,694.37,692.8,0.2886836]
[1736574820566,0.2879811,694.49,692.8,1.57312312]
[1736574820567,1.0796228,694.36,692.8,1.57312312]
[1736574821768,1.0796228,694.35,692.8,1.57312312]
[1736574823567,1.0796228,694.34,692.81,1.28443952]
[1736574823772,1.0796228,694.34,692.83,0.2886711]
[1736574825377,1.0796228,694.35,692.83,0.2886711]
[1736574826472,1.0796228,694.38,692.84,1.28443952]
[1736574826777,1.0796228,694.38,692.86,0.2886586]
[1736574827269,1.0796228,694.39,692.86,0.2886586]
[1736574828176,0.2879811,694.49,692.86,0.2886586]
[1736574838380,1.0796228,694.48,692.99,1.28443952]
[1736574838584,1.0796228,694.48,693.0,0.28860028]
[1736574839181,1.0796228,694.47,693.0,0.28860028]
[1736574840187,1.0796228,694.46,693.0,0.28860028]
[1736574841290,1.0796228,694.45,693.0,0.28860028]
[1736574842488,1.0796228,694.46,693.0,1.5730398]
[1736574843289,0.2879811,694.49,693.0,0.28860028]
[1736574845794,1.3676039,694.49,693.0,0.28860028]
[1736574846994,0.2879811,694.49,693.0,0.28860028]
[1736574853292,1.3676039,694.49,693.0,0.28860028]
[1736574854300,1.0796228,694.48,693.0,0.28860028]
[1736574856496,1.0796228,694.43,693.0,0.28860028]
[1736574857396,0.2879811,694.49,693.0,0.28860028]
[1736574859402,1.0796228,694.47,693.0,0.28860028]
[1736574860397,1.0796228,694.44,693.0,0.28860028]
[1736574862097,1.0796228,694.4,693.0,0.28860028]
[1736574863004,1.0796228,694.38,693.0,0.28860028]
[1736574864206,1.0796228,694.4,693.0,0.28860028]
[1736574864700,1.0796228,694.45,693.0,0.28860028]
[1736574867406,1.0796228,694.41,693.0,0.28860028]
[1736574870210,1.0796228,694.4,693.0,0.28860028]
[1736574872106,0.2879811,694.49,693.0,0.28860028]
[1736574872107,1.0796228,694.38,693.0,0.28860028]
[1736574873011,1.0796228,694.44,693.0,0.28860028]
[1736574874411,1.0796228,694.43,693.0,0.28860028]
[1736574875810,1.0796228,694.41,693.0,0.28860028]
[1736574876615,1.0796228,694.42,693.0,0.28860028]
[1736574877315,1.0796228,694.41,693.0,0.28860028]
[1736574879114,1.0796228,694.35,693.0,0.28860028]
[1736574880117,1.0796228,694.36,693.0,0.28860028]
[1736574881319,1.0796228,694.37,693.0,0.28860028]
[1736574883121,1.0796228,694.35,693.0,0.28860028]
[1736574885122,1.0796228,694.37,693.0,0.28860028]
[1736574885922,1.0796228,694.36,693.0,0.28860028]
[1736574886523,1.0796228,694.38,693.0,0.28860028]
[1736574887322,1.0796228,694.4,693.0,0.28860028]
[1736574888026,1.0796228,694.39,693.0,0.28860028]
[1736574888824,1.0796228,694.3,693.0,0.28860028]
[1736574889725,1.0796228,694.29,693.0,0.28860028]
[1736574890520,1.0796228,694.32,693.0,0.28860028]
[1736574891426,0.2879811,694.49,693.0,0.28860028]
[1736574891427,1.0796228,694.33,693.0,0.28860028]
[1736574892524,1.0796228,694.34,693.0,0.28860028]
[1736574893626,1.0796228,694.36,693.0,0.28860028]
[1736574894428,1.0796228,694.37,693.0,0.28860028]
[1736574896324,1.0796228,694.35,693.0,0.28860028]
[1736574897732,1.0796228,694.34,693.0,0.28860028]
[1736574899731,1.0796228,694.33,693.0,0.28860028]
[1736574900535,1.0796228,694.34,693.0,0.28860028]
[1736574901735,1.0796228,694.38,693.0,0.28860028]
[1736574902735,1.0796228,694.41,693.0,1.5730398]
[1736574904534,0.2879811,694.49,693.07,1.28443952]
[1736574904535,1.0796228,694.39,693.07,1.28443952]
[1736574905837,1.0796228,694.4,693.08,1.57300649]
[1736574906036,1.0796228,694.4,693.09,0.28856281]
[1736574907739,1.0796228,694.39,693.09,0.28856281]
[1736574908635,1.0796228,694.4,693.09,0.28856281]
[1736574910137,1.0796228,694.38,693.09,0.28856281]
[1736574911138,1.0796228,694.39,693.09,0.28856281]
[1736574911842,0.2879811,694.49,693.09,0.28856281]
[1736574911843,1.0796228,694.38,693.09,0.28856281]
[1736574912842,1.0796228,694.39,693.09,0.28856281]
[1736574913542,1.0796228,694.43,693.09,0.28856281]
[1736574914444,1.0796228,694.45,693.09,0.28856281]
[1736574915643,0.2879811,694.49,693.09,0.28856281]
[1736574915644,1.0796228,694.46,693.09,0.28856281]
[1736574916344,0.2879811,694.49,693.09,0.28856281]
[1736574943369,1.0796228,694.85,693.09,0.28856281]
[1736574944370,1.0796228,694.91,693.09,0.28856281]
[1736574944570,0.28781119,694.9,693.09,0.28856281]
[1736574945270,1.36743399,694.9,693.09,0.28856281]
[1736574946272,1.0796228,694.89,693.09,0.28856281]
[1736574946674,0.28781947,694.88,693.09,0.28856281]
[1736574947374,1.0796228,694.85,693.09,0.28856281]
[1736574948275,0.72533589,695.43,693.09,0.28856281]
[1736574948276,1.0796228,694.83,693.09,0.28856281]
[1736574949072,1.0796228,694.79,693.09,0.28856281]
[1736574950075,1.0796228,694.76,693.09,0.28856281]
[1736574951276,0.28783604,694.84,693.09,0.28856281]
[1736574952371,1.36745884,694.84,693.09,0.28856281]
[1736574954478,1.0796228,694.82,693.09,0.28856281]
[1736574956877,1.0796228,694.81,693.09,0.28856281]
[1736574957377,1.0796228,694.8,693.09,0.28856281]
[1736574958278,1.0796228,694.79,693.09,0.28856281]
[1736574960474,1.0796228,694.67,693.09,0.28856281]
[1736574961275,1.0796228,694.65,693.09,0.28856281]
[1736574962278,0.28783604,694.84,693.09,0.28856281]
[1736574962279,1.0796228,694.63,693.09,0.28856281]
[1736574963382,1.0796228,694.59,693.21,1.28443952]
[1736574963577,1.0796228,694.59,693.23,0.28850453]
[1736574964377,0.28783604,694.84,693.23,0.28850453]
[1736574964378,1.0796228,694.58,693.23,0.28850453]
[1736574965185,1.0796228,694.59,693.23,0.28850453]
[1736574968087,1.0796228,694.58,693.23,1.57294405]
[1736574969088,1.0796228,694.58,693.24,1.28443952]
[1736574969285,1.0796228,694.58,693.25,0.28849621]
[1736574969887,1.0796228,694.59,693.25,0.28849621]
[1736574970887,0.89403483,694.83,693.25,0.28849621]
[1736574970888,1.0796228,694.57,693.25,0.28849621]
[1736574971687,1.0796228,694.57,693.25,1.57293573]
[1736574972694,1.0796228,694.55,693.25,0.28849621]
[1736574973796,1.0796228,694.56,693.25,0.28849621]
[1736574975391,1.0796228,694.58,693.25,0.28849621]
[1736574976698,1.0796228,694.56,693.34,1.28443952]
[1736574976899,1.0796228,694.56,693.35,0.2884546]
[1736574977799,1.0796228,694.69,693.35,0.2884546]
[1736574978691,1.0796228,694.68,693.35,0.2884546]
[1736574980400,1.0796228,694.67,693.35,0.2884546]
[1736574982201,1.0796228,694.66,693.35,0.2884546]
[1736574983997,1.0796228,694.7,693.35,0.2884546]
[1736574984998,1.0796228,694.67,693.35,0.2884546]
[1736574986302,1.0796228,694.68,693.35,0.2884546]
[1736574987102,1.0796228,694.56,693.4,1.28443952]
[1736574987302,1.0796228,694.56,693.41,0.28842964]
[1736574988099,1.0796228,694.55,693.41,0.28842964]
[1736574989006,1.0796228,694.56,693.41,0.28842964]
[1736574990108,0.28783604,694.84,693.41,0.28842964]